[Event "Live Chess"]
[Site "Chess.com"]
[Date "2023.05.21"]
[Round "-"]
[White "zdanevych"]
[Black "Doge_Dandolo"]
[Result "0-1"]
[WhiteElo "1479"]
[BlackElo "1873"]
[TimeControl "300"]
[EndTime "7:33:54 PDT"]
[Termination "Doge_Dandolo won by resignation"]

1. d4 {[%clk 0:04:59.1]} 1... d5 {[%clk 0:04:54.4]} 2. c4 {[%clk 0:04:58.6]}
2... c6 {[%clk 0:04:50.2]} 3. Nc3 {[%clk 0:04:57.5]} 3... Nf6 {[%clk 0:04:48.4]}
4. Nf3 {[%clk 0:04:56.9]} 4... a6 {[%clk 0:04:47]} 5. h3 {[%clk 0:04:56.3]} 5...
Bf5 {[%clk 0:04:45.5]} 6. Bf4 {[%clk 0:04:55.7]} 6... e6 {[%clk 0:04:44.3]} 7.
e3 {[%clk 0:04:54.6]} 7... Bd6 {[%clk 0:04:42.9]} 8. Bxd6 {[%clk 0:04:52.8]}
8... Qxd6 {[%clk 0:04:41.7]} 9. c5 {[%clk 0:04:52.7]} 9... Qe7 {[%clk
0:04:39.9]} 10. Bd3 {[%clk 0:04:52.4]} 10... Bxd3 {[%clk 0:04:38.2]} 11. Qxd3
{[%clk 0:04:52.3]} 11... Nbd7 {[%clk 0:04:37]} 12. O-O {[%clk 0:04:51.9]} 12...
O-O {[%clk 0:04:35.4]} 13. e4 {[%clk 0:04:48.6]} 13... dxe4 {[%clk 0:04:34]} 14.
Nxe4 {[%clk 0:04:48.5]} 14... Nxe4 {[%clk 0:04:33.2]} 15. Qxe4 {[%clk
0:04:48.4]} 15... Nf6 {[%clk 0:04:31.7]} 16. Qc2 {[%clk 0:04:35.9]} 16... Rfd8
{[%clk 0:04:29.2]} 17. Rad1 {[%clk 0:04:34.2]} 17... Rd5 {[%clk 0:04:27.6]} 18.
Rd3 {[%clk 0:04:32.3]} 18... Rad8 {[%clk 0:04:26.1]} 19. Rfd1 {[%clk 0:04:30.6]}
19... Nd7 {[%clk 0:04:17.3]} 20. Ne5 {[%clk 0:04:25.5]} 20... Nxe5 {[%clk
0:04:07.4]} 21. dxe5 {[%clk 0:04:24.6]} 21... Qd7 {[%clk 0:04:05.3]} 22. Rxd5
{[%clk 0:04:19.2]} 22... exd5 {[%clk 0:04:02.3]} 23. f4 {[%clk 0:04:16.4]} 23...
Qe7 {[%clk 0:03:55.6]} 24. b4 {[%clk 0:04:14.5]} 24... a5 {[%clk 0:03:53.1]} 25.
a3 {[%clk 0:04:13.4]} 25... axb4 {[%clk 0:03:51.5]} 26. axb4 {[%clk 0:04:13.3]}
26... Ra8 {[%clk 0:03:50.4]} 27. Qb2 {[%clk 0:04:09.1]} 27... Qh4 {[%clk
0:03:46.8]} 28. Rf1 {[%clk 0:03:58.7]} 28... g6 {[%clk 0:03:41.2]} 29. Kh2
{[%clk 0:03:57.5]} 29... h5 {[%clk 0:03:35.9]} 30. g3 {[%clk 0:03:56.1]} 30...
Qe7 {[%clk 0:03:33.8]} 31. Re1 {[%clk 0:03:49.2]} 31... Qe6 {[%clk 0:03:24.6]}
32. Qc3 {[%clk 0:03:45.5]} 32... Ra2+ {[%clk 0:03:20.9]} 33. Kh1 {[%clk
0:03:41.4]} 33... Qxh3+ {[%clk 0:03:17.5]} 0-1

[Event "Live Chess"]
[Site "Chess.com"]
[Date "2023.05.21"]
[Round "-"]
[White "CheckThis4"]
[Black "Man-Del-Brot"]
[Result "1-0"]
[WhiteElo "2528"]
[BlackElo "1061"]
[TimeControl "300"]
[EndTime "7:33:58 PDT"]
[Termination "CheckThis4 won on time"]

1. d4 {[%clk 0:04:58.5]} 1... Nf6 {[%clk 0:04:57.9]} 2. Nc3 {[%clk 0:04:58.4]}
2... d5 {[%clk 0:04:56.4]} 3. e4 {[%clk 0:04:57.6]} 3... dxe4 {[%clk 0:04:54.5]}
4. f3 {[%clk 0:04:56.1]} 4... Nc6 {[%clk 0:04:48.7]} 5. Bb5 {[%clk 0:04:46]}
5... Bd7 {[%clk 0:04:44.4]} 6. Be3 {[%clk 0:04:36.8]} 6... e6 {[%clk 0:04:29.4]}
7. fxe4 {[%clk 0:04:30.8]} 7... Bb4 {[%clk 0:04:25.3]} 8. Qf3 {[%clk 0:03:59.6]}
8... a6 {[%clk 0:03:38.7]} 9. Bd3 {[%clk 0:03:28.4]} 9... e5 {[%clk 0:03:26.5]}
10. d5 {[%clk 0:03:22.7]} 10... Nd4 {[%clk 0:03:24.7]} 11. Qg3 {[%clk 0:03:18]}
11... Nh5 {[%clk 0:02:49.7]} 12. Qxe5+ {[%clk 0:03:12.9]} 12... Qe7 {[%clk
0:02:20.4]} 13. Qxe7+ {[%clk 0:03:09.2]} 13... Kxe7 {[%clk 0:02:11.7]} 14. Bxd4
{[%clk 0:03:09.1]} 14... f6 {[%clk 0:01:59.8]} 15. Ne2 {[%clk 0:03:06.9]} 15...
c5 {[%clk 0:01:49.5]} 16. Be3 {[%clk 0:03:03.9]} 16... g5 {[%clk 0:01:39.1]} 17.
a3 {[%clk 0:03:01.3]} 17... Bxc3+ {[%clk 0:01:34.7]} 18. Nxc3 {[%clk 0:03:01.2]}
18... b5 {[%clk 0:01:32.9]} 19. Bxc5+ {[%clk 0:02:58.7]} 19... Kf7 {[%clk
0:01:30.4]} 20. O-O {[%clk 0:02:54]} 20... Rac8 {[%clk 0:01:10.8]} 21. Bd4
{[%clk 0:02:38.7]} 21... Rcg8 {[%clk 0:00:37.8]} 22. e5 {[%clk 0:02:34.5]} 22...
f5 {[%clk 0:00:29.4]} 23. e6+ {[%clk 0:02:25]} 23... Ke7 {[%clk 0:00:26]} 24.
Bxh8 {[%clk 0:02:20]} 24... Rxh8 {[%clk 0:00:22.8]} 25. exd7 {[%clk 0:02:19.1]}
25... Kxd7 {[%clk 0:00:21]} 26. Bxf5+ {[%clk 0:02:18.1]} 26... Kd6 {[%clk
0:00:19]} 27. Rae1 {[%clk 0:02:17.1]} 27... Nf4 {[%clk 0:00:11.3]} 28. Rxf4
{[%clk 0:02:15.6]} 28... gxf4 {[%clk 0:00:09.8]} 29. Re6+ {[%clk 0:02:15.2]}
29... Kc5 {[%clk 0:00:03.2]} 30. Rxa6 {[%clk 0:02:13.6]} 1-0

[Event "Live Chess"]
[Site "Chess.com"]
[Date "2023.05.21"]
[Round "-"]
[White "youtookmyhorse"]
[Black "DRS44"]
[Result "1-0"]
[WhiteElo "762"]
[BlackElo "1279"]
[TimeControl "300"]
[EndTime "7:33:59 PDT"]
[Termination "youtookmyhorse won on time"]

1. e4 {[%clk 0:04:56.8]} 1... e5 {[%clk 0:04:54.5]} 2. Nc3 {[%clk 0:04:55.4]}
2... Nf6 {[%clk 0:04:51.1]} 3. f4 {[%clk 0:04:48.8]} 3... d5 {[%clk 0:04:42.2]}
4. exd5 {[%clk 0:04:47.4]} 4... e4 {[%clk 0:04:33]} 5. Bc4 {[%clk 0:04:27.7]}
5... Bf5 {[%clk 0:04:23]} 6. d3 {[%clk 0:04:24.4]} 6... exd3 {[%clk 0:04:16.6]}
7. cxd3 {[%clk 0:04:21.9]} 7... Bc5 {[%clk 0:04:11.7]} 8. Nf3 {[%clk 0:04:20.3]}
8... O-O {[%clk 0:03:59.8]} 9. Ng5 {[%clk 0:04:05.4]} 9... h6 {[%clk 0:03:46.8]}
10. Nf3 {[%clk 0:04:01.9]} 10... c6 {[%clk 0:03:37.4]} 11. Bd2 {[%clk
0:03:59.1]} 11... Qb6 {[%clk 0:03:31.5]} 12. b3 {[%clk 0:03:54.8]} 12... Bf2+
{[%clk 0:03:26.3]} 13. Kf1 {[%clk 0:03:43.8]} 13... Bd4 {[%clk 0:03:12.2]} 14.
Na4 {[%clk 0:03:21.8]} 14... Qc7 {[%clk 0:03:01.7]} 15. Nxd4 {[%clk 0:03:19.8]}
15... Bg6 {[%clk 0:02:36.4]} 16. Qf3 {[%clk 0:03:12.8]} 16... c5 {[%clk
0:02:22]} 17. Ne2 {[%clk 0:02:58.6]} 17... a6 {[%clk 0:02:14.8]} 18. d6 {[%clk
0:02:46.8]} 18... Qxd6 {[%clk 0:02:04.2]} 19. Nac3 {[%clk 0:02:36.4]} 19... Nbd7
{[%clk 0:01:54.9]} 20. h4 {[%clk 0:02:26.1]} 20... b5 {[%clk 0:01:44.1]} 21. Qd5
{[%clk 0:02:13.7]} 21... Qxd5 {[%clk 0:01:23.6]} 22. Bxd5 {[%clk 0:02:12.1]}
22... Rad8 {[%clk 0:01:20.4]} 23. Bf3 {[%clk 0:02:06]} 23... Bxd3 {[%clk
0:01:09.4]} 24. Re1 {[%clk 0:01:55.5]} 24... c4 {[%clk 0:01:01.1]} 25. bxc4
{[%clk 0:01:54.1]} 25... b4 {[%clk 0:00:56.4]} 26. Nd5 {[%clk 0:01:51.8]} 26...
Nxd5 {[%clk 0:00:47.4]} 27. Bxd5 {[%clk 0:01:46.7]} 27... a5 {[%clk 0:00:41.7]}
28. g4 {[%clk 0:01:37.4]} 28... a4 {[%clk 0:00:36.8]} 29. g5 {[%clk 0:01:35.8]}
29... b3 {[%clk 0:00:33.5]} 30. axb3 {[%clk 0:01:34.2]} 30... axb3 {[%clk
0:00:31]} 31. Bc3 {[%clk 0:01:28]} 31... Rb8 {[%clk 0:00:25.8]} 32. gxh6 {[%clk
0:01:22.4]} 32... b2 {[%clk 0:00:19.4]} 33. Bxb2 {[%clk 0:01:17.3]} 33... Rxb2
{[%clk 0:00:15]} 34. hxg7 {[%clk 0:01:13.8]} 34... Kxg7 {[%clk 0:00:08.3]} 35.
Rg1+ {[%clk 0:01:09.5]} 35... Kh8 {[%clk 0:00:02.6]} 36. Bf3 {[%clk 0:01:02.7]}
1-0

[Event "Live Chess"]
[Site "Chess.com"]
[Date "2023.05.21"]
[Round "-"]
[White "ossie57"]
[Black "HadesLearmonth"]
[Result "1-0"]
[WhiteElo "1836"]
[BlackElo "1210"]
[TimeControl "300"]
[EndTime "7:34:02 PDT"]
[Termination "ossie57 won by checkmate"]

1. e4 {[%clk 0:04:58.5]} 1... e5 {[%clk 0:04:59.2]} 2. Nf3 {[%clk 0:04:58.1]}
2... Nc6 {[%clk 0:04:58.1]} 3. d4 {[%clk 0:04:57.4]} 3... exd4 {[%clk 0:04:57]}
4. Bc4 {[%clk 0:04:56.8]} 4... Bc5 {[%clk 0:04:55.3]} 5. c3 {[%clk 0:04:53.7]}
5... Nf6 {[%clk 0:04:53.5]} 6. cxd4 {[%clk 0:04:52.1]} 6... Bb4+ {[%clk
0:04:50]} 7. Bd2 {[%clk 0:04:47.7]} 7... O-O {[%clk 0:04:46.4]} 8. Bxb4 {[%clk
0:04:44.4]} 8... Nxb4 {[%clk 0:04:46.3]} 9. e5 {[%clk 0:04:43.6]} 9... Ne4
{[%clk 0:04:43.6]} 10. O-O {[%clk 0:04:42.6]} 10... d5 {[%clk 0:04:40.8]} 11.
exd6 {[%clk 0:04:37.1]} 11... Qxd6 {[%clk 0:04:39.6]} 12. a3 {[%clk 0:04:32.1]}
12... Nc6 {[%clk 0:04:30.1]} 13. d5 {[%clk 0:04:29]} 13... Ne5 {[%clk
0:04:26.4]} 14. Nxe5 {[%clk 0:04:26.7]} 14... Qxe5 {[%clk 0:04:26.3]} 15. Re1
{[%clk 0:04:14.9]} 15... Qf5 {[%clk 0:04:19.5]} 16. Qc2 {[%clk 0:04:07.7]} 16...
Re8 {[%clk 0:04:15.6]} 17. Nc3 {[%clk 0:04:06.1]} 17... Nd6 {[%clk 0:04:00.9]}
18. Bd3 {[%clk 0:04:02.2]} 18... Rxe1+ {[%clk 0:03:56.4]} 19. Rxe1 {[%clk
0:04:00.9]} 19... Qd7 {[%clk 0:03:50.9]} 20. Bxh7+ {[%clk 0:03:59.5]} 20... Kf8
{[%clk 0:03:42.5]} 21. Bd3 {[%clk 0:03:49.2]} 21... b6 {[%clk 0:03:35.2]} 22.
Bb5 {[%clk 0:03:44.7]} 22... Qg4 {[%clk 0:03:23.8]} 23. Bc6 {[%clk 0:03:38.1]}
23... Rb8 {[%clk 0:03:20.8]} 24. h3 {[%clk 0:03:35.5]} 24... Qg5 {[%clk
0:03:12.9]} 25. Qe2 {[%clk 0:03:33.7]} 25... Bxh3 {[%clk 0:03:07.4]} 26. Qf3
{[%clk 0:03:12.3]} 26... Bg4 {[%clk 0:03:03.7]} 27. Qg3 {[%clk 0:03:05.3]} 27...
Nf5 {[%clk 0:02:57.1]} 28. Qxc7 {[%clk 0:02:59.6]} 28... Rd8 {[%clk 0:02:33.3]}
29. Ne4 {[%clk 0:02:25.4]} 29... Qh6 {[%clk 0:02:23.6]} 30. Qxd8# {[%clk
0:02:22.3]} 1-0

[Event "Live Chess"]
[Site "Chess.com"]
[Date "2023.05.21"]
[Round "-"]
[White "davigator"]
[Black "AlanPaling"]
[Result "1-0"]
[WhiteElo "2286"]
[BlackElo "1377"]
[TimeControl "300"]
[EndTime "7:34:06 PDT"]
[Termination "davigator won by resignation"]

1. e4 {[%clk 0:04:58.7]} 1... Nf6 {[%clk 0:04:57.6]} 2. e5 {[%clk 0:04:57.4]}
2... Nd5 {[%clk 0:04:56.2]} 3. d4 {[%clk 0:04:57.3]} 3... d6 {[%clk 0:04:54.5]}
4. c4 {[%clk 0:04:57.2]} 4... Nb6 {[%clk 0:04:53.1]} 5. f4 {[%clk 0:04:56.3]}
5... dxe5 {[%clk 0:04:52.3]} 6. fxe5 {[%clk 0:04:56.2]} 6... g6 {[%clk
0:04:51.3]} 7. Be3 {[%clk 0:04:54.9]} 7... Bg7 {[%clk 0:04:50.4]} 8. Nc3 {[%clk
0:04:54.5]} 8... O-O {[%clk 0:04:49.3]} 9. Be2 {[%clk 0:04:53.9]} 9... Bf5
{[%clk 0:04:47]} 10. Nf3 {[%clk 0:04:52.9]} 10... c5 {[%clk 0:04:42.5]} 11. d5
{[%clk 0:04:36.8]} 11... N6d7 {[%clk 0:04:33.9]} 12. Bf4 {[%clk 0:04:33.5]}
12... Qc7 {[%clk 0:04:28.4]} 13. d6 {[%clk 0:04:28.2]} 13... exd6 {[%clk
0:04:26.2]} 14. exd6 {[%clk 0:04:27.5]} 14... Qd8 {[%clk 0:04:12.2]} 15. O-O
{[%clk 0:04:25.1]} 15... Re8 {[%clk 0:03:52.5]} 16. Qd2 {[%clk 0:04:19.4]} 16...
Na6 {[%clk 0:03:45.9]} 17. Rad1 {[%clk 0:04:14.2]} 17... Rc8 {[%clk 0:03:29.9]}
18. Nd5 {[%clk 0:04:12.5]} 18... Rb8 {[%clk 0:03:15.2]} 19. Ne7+ {[%clk
0:04:09.6]} 19... Kf8 {[%clk 0:03:03]} 20. Nxf5 {[%clk 0:04:07.9]} 20... gxf5
{[%clk 0:02:56.3]} 21. Bh6 {[%clk 0:04:06.6]} 21... Qf6 {[%clk 0:02:50.8]} 22.
Bxg7+ {[%clk 0:04:04.5]} 22... Kxg7 {[%clk 0:02:46.2]} 23. Rf2 {[%clk
0:03:57.9]} 23... Ne5 {[%clk 0:02:25.9]} 24. Nxe5 {[%clk 0:03:54.5]} 24... Qxe5
{[%clk 0:02:24.1]} 25. Bf3 {[%clk 0:03:50.7]} 25... Red8 {[%clk 0:02:14.7]} 26.
Qg5+ {[%clk 0:03:42.9]} 26... Kh8 {[%clk 0:02:00]} 27. Re2 {[%clk 0:03:41.2]}
27... Qg7 {[%clk 0:01:49.6]} 28. Qe7 {[%clk 0:03:39.5]} 28... Qf8 {[%clk
0:01:42.2]} 29. Qf6+ {[%clk 0:03:34.8]} 29... Qg7 {[%clk 0:01:41.2]} 30. Qxf5
{[%clk 0:03:33.2]} 30... Qg6 {[%clk 0:01:27.6]} 31. Qe5+ {[%clk 0:03:26.2]}
31... f6 {[%clk 0:01:22.2]} 32. Qd5 {[%clk 0:03:20.4]} 32... Nb4 {[%clk
0:01:11.1]} 33. Qxc5 {[%clk 0:03:18.2]} 33... Na6 {[%clk 0:01:02.2]} 34. Qd4
{[%clk 0:03:15.5]} 34... Qg7 {[%clk 0:00:58.2]} 35. Qxa7 {[%clk 0:03:12]} 35...
Rd7 {[%clk 0:00:47.5]} 36. c5 {[%clk 0:03:07.1]} 36... Rc8 {[%clk 0:00:31.5]}
37. Bxb7 {[%clk 0:02:58.2]} 37... Rxc5 {[%clk 0:00:23.9]} 38. Qxa6 {[%clk
0:02:55.5]} 38... Rxb7 {[%clk 0:00:18]} 39. Re8+ {[%clk 0:02:54.4]} 1-0

[Event "Live Chess"]
[Site "Chess.com"]
[Date "2023.05.21"]
[Round "-"]
[White "SimpleHarmonic1"]
[Black "howitzer14"]
[Result "0-1"]
[WhiteElo "2045"]
[BlackElo "2890"]
[TimeControl "300"]
[EndTime "7:34:13 PDT"]
[Termination "howitzer14 won on time"]

1. d4 {[%clk 0:04:57.3]} 1... d6 {[%clk 0:04:56.7]} 2. c4 {[%clk 0:04:55.6]}
2... Nf6 {[%clk 0:04:56.6]} 3. Nc3 {[%clk 0:04:49.5]} 3... g6 {[%clk 0:04:56.5]}
4. e4 {[%clk 0:04:48]} 4... Bg7 {[%clk 0:04:53.9]} 5. Nge2 {[%clk 0:04:47.4]}
5... c5 {[%clk 0:04:48.4]} 6. d5 {[%clk 0:04:45.4]} 6... e6 {[%clk 0:04:46.9]}
7. Ng3 {[%clk 0:04:36.7]} 7... O-O {[%clk 0:04:40.4]} 8. Be2 {[%clk 0:04:35.7]}
8... Re8 {[%clk 0:04:38.9]} 9. O-O {[%clk 0:04:34.1]} 9... Na6 {[%clk
0:04:36.9]} 10. h3 {[%clk 0:04:29.5]} 10... Nc7 {[%clk 0:04:30.9]} 11. Bg5
{[%clk 0:04:25.1]} 11... h6 {[%clk 0:04:19.9]} 12. Be3 {[%clk 0:04:22.7]} 12...
exd5 {[%clk 0:03:51.6]} 13. exd5 {[%clk 0:04:22.6]} 13... Rxe3 {[%clk
0:03:39.2]} 14. fxe3 {[%clk 0:04:21.2]} 14... Qe7 {[%clk 0:03:39.1]} 15. e4
{[%clk 0:03:48.7]} 15... Bd7 {[%clk 0:03:27.5]} 16. a4 {[%clk 0:03:42.5]} 16...
Re8 {[%clk 0:03:24.9]} 17. Bd3 {[%clk 0:03:34.4]} 17... Na6 {[%clk 0:03:20.3]}
18. Rc1 {[%clk 0:03:23.9]} 18... Nb4 {[%clk 0:03:19.6]} 19. Bb1 {[%clk
0:03:22.5]} 19... Bc8 {[%clk 0:03:11.7]} 20. Kh1 {[%clk 0:03:20.2]} 20... Nd7
{[%clk 0:03:10.6]} 21. Nge2 {[%clk 0:03:15.5]} 21... Ne5 {[%clk 0:02:58.4]} 22.
b3 {[%clk 0:03:03.1]} 22... h5 {[%clk 0:02:51.8]} 23. Nf4 {[%clk 0:02:25.9]}
23... Bh6 {[%clk 0:02:37.9]} 24. Nce2 {[%clk 0:02:08.3]} 24... Bd7 {[%clk
0:02:04.6]} 25. Rc3 {[%clk 0:02:05.7]} 25... Qh4 {[%clk 0:02:01.3]} 26. Qe1
{[%clk 0:01:56.9]} 26... Qxe1 {[%clk 0:01:58.2]} 27. Rxe1 {[%clk 0:01:56.8]}
27... Kg7 {[%clk 0:01:58.1]} 28. Rg3 {[%clk 0:01:50.1]} 28... h4 {[%clk
0:01:51.4]} 29. Rc3 {[%clk 0:01:33.2]} 29... b6 {[%clk 0:01:50.9]} 30. Rf1
{[%clk 0:01:14.6]} 30... a6 {[%clk 0:01:50]} 31. Nc1 {[%clk 0:01:02]} 31... b5
{[%clk 0:01:47.8]} 32. axb5 {[%clk 0:01:00.5]} 32... axb5 {[%clk 0:01:47.7]} 33.
Na2 {[%clk 0:00:50.7]} 33... Nxa2 {[%clk 0:01:39.2]} 34. Bxa2 {[%clk 0:00:50.6]}
34... b4 {[%clk 0:01:38.4]} 35. Rc2 {[%clk 0:00:31.7]} 35... Ra8 {[%clk
0:01:20.9]} 36. Ne2 {[%clk 0:00:17.7]} 36... Ra3 {[%clk 0:01:17.1]} 37. Ng1
{[%clk 0:00:16.3]} 37... g5 {[%clk 0:01:09.2]} 38. Nf3 {[%clk 0:00:15.6]} 38...
Ng6 {[%clk 0:01:08.5]} 39. Rcf2 {[%clk 0:00:10]} 39... Be8 {[%clk 0:01:05.8]}
40. Ne1 {[%clk 0:00:08.6]} 40... Ne5 {[%clk 0:01:04.1]} 41. Nf3 {[%clk
0:00:07.1]} 41... Nd3 {[%clk 0:01:02.7]} 42. Rd2 {[%clk 0:00:06.8]} 42... Nf4
{[%clk 0:01:02.2]} 43. Rdf2 {[%clk 0:00:05.7]} 43... Nh5 {[%clk 0:01:01.7]} 44.
Nh2 {[%clk 0:00:04]} 44... Ng3+ {[%clk 0:01:01.6]} 45. Kg1 {[%clk 0:00:02.3]}
45... Nxf1 {[%clk 0:01:01.5]} 46. Kxf1 {[%clk 0:00:02.2]} 46... Bd7 {[%clk
0:01:01]} 47. Ng4 {[%clk 0:00:01.8]} 47... Bxg4 {[%clk 0:01:00.6]} 48. hxg4
{[%clk 0:00:01.7]} 48... Kg6 {[%clk 0:01:00.5]} 49. Bb1 {[%clk 0:00:01.1]} 49...
Ra1 {[%clk 0:00:59.5]} 0-1

[Event "Live Chess"]
[Site "Chess.com"]
[Date "2023.05.21"]
[Round "-"]
[White "KeithArkell"]
[Black "Hacker_2009"]
[Result "0-1"]
[WhiteElo "2462"]
[BlackElo "1953"]
[TimeControl "300"]
[EndTime "7:34:20 PDT"]
[Termination "Hacker_2009 won by resignation"]

1. d4 {[%clk 0:04:58.4]} 1... Nf6 {[%clk 0:04:58.4]} 2. Nf3 {[%clk 0:04:57.1]}
2... e6 {[%clk 0:04:56.4]} 3. c4 {[%clk 0:04:56.3]} 3... d5 {[%clk 0:04:55.2]}
4. cxd5 {[%clk 0:04:55.2]} 4... Nxd5 {[%clk 0:04:52.4]} 5. Nc3 {[%clk 0:04:54]}
5... c5 {[%clk 0:04:50.8]} 6. Nxd5 {[%clk 0:04:49.6]} 6... Qxd5 {[%clk
0:04:48.2]} 7. e3 {[%clk 0:04:48.6]} 7... Nc6 {[%clk 0:04:46.9]} 8. Bb5 {[%clk
0:04:41.2]} 8... cxd4 {[%clk 0:04:45.9]} 9. Bxc6+ {[%clk 0:04:37.6]} 9... Qxc6
{[%clk 0:04:44]} 10. Qxd4 {[%clk 0:04:33.8]} 10... Qd7 {[%clk 0:04:29.6]} 11.
Qxd7+ {[%clk 0:04:06.5]} 11... Bxd7 {[%clk 0:04:27.5]} 12. O-O {[%clk
0:04:05.4]} 12... Bc6 {[%clk 0:04:26.4]} 13. Bd2 {[%clk 0:04:03.6]} 13... Be7
{[%clk 0:04:25.7]} 14. Bc3 {[%clk 0:03:57.2]} 14... Bxf3 {[%clk 0:04:23.5]} 15.
gxf3 {[%clk 0:03:55.8]} 15... O-O {[%clk 0:04:21.9]} 16. Rac1 {[%clk 0:03:54.8]}
16... Rac8 {[%clk 0:04:20.3]} 17. f4 {[%clk 0:03:53.8]} 17... Bf6 {[%clk
0:04:18.8]} 18. Bxf6 {[%clk 0:03:52.7]} 18... gxf6 {[%clk 0:04:17.6]} 19. Kg2
{[%clk 0:03:50.8]} 19... f5 {[%clk 0:04:15.3]} 20. Kf3 {[%clk 0:03:49.3]} 20...
Rfd8 {[%clk 0:04:14.3]} 21. Ke2 {[%clk 0:03:43]} 21... Kg7 {[%clk 0:04:08.7]}
22. Rfd1 {[%clk 0:03:38.6]} 22... Rxd1 {[%clk 0:04:04.9]} 23. Rxc8 {[%clk
0:03:34.6]} 23... Rb1 {[%clk 0:03:58]} 24. Rc2 {[%clk 0:03:31.8]} 24... Rh1
{[%clk 0:03:56.9]} 25. a4 {[%clk 0:03:28.1]} 25... Rxh2 {[%clk 0:03:51.9]} 26.
Rc7 {[%clk 0:03:26.4]} 26... Rh1 {[%clk 0:03:49.7]} 27. Rxb7 {[%clk 0:03:25]}
27... Rb1 {[%clk 0:03:49.2]} 28. b4 {[%clk 0:03:22.6]} 28... h5 {[%clk
0:03:47.4]} 29. Kf3 {[%clk 0:03:22]} 29... Rg1 {[%clk 0:03:43.1]} 0-1

[Event "Live Chess"]
[Site "Chess.com"]
[Date "2023.05.21"]
[Round "-"]
[White "seabuck"]
[Black "Conradical12"]
[Result "1-0"]
[WhiteElo "1893"]
[BlackElo "1534"]
[TimeControl "300"]
[EndTime "7:34:26 PDT"]
[Termination "seabuck won by resignation"]

1. d4 {[%clk 0:04:57.8]} 1... d5 {[%clk 0:04:57.9]} 2. c4 {[%clk 0:04:56.7]}
2... Nf6 {[%clk 0:04:53.4]} 3. Nc3 {[%clk 0:04:50.3]} 3... Bf5 {[%clk
0:04:51.6]} 4. Nf3 {[%clk 0:04:40.5]} 4... Nc6 {[%clk 0:04:48.7]} 5. a3 {[%clk
0:04:35.5]} 5... a5 {[%clk 0:04:44.7]} 6. e3 {[%clk 0:04:32.2]} 6... e6 {[%clk
0:04:39.5]} 7. Qa4 {[%clk 0:04:21.3]} 7... Be7 {[%clk 0:04:32.8]} 8. Ne5 {[%clk
0:04:10.4]} 8... O-O {[%clk 0:04:22.3]} 9. Nxc6 {[%clk 0:04:05.5]} 9... bxc6
{[%clk 0:04:21.1]} 10. Qxc6 {[%clk 0:04:03.4]} 10... Ne4 {[%clk 0:04:16.5]} 11.
cxd5 {[%clk 0:03:48.9]} 11... Nxc3 {[%clk 0:04:09.7]} 12. Qxc3 {[%clk
0:03:42.9]} 12... Qxd5 {[%clk 0:04:06.8]} 13. f3 {[%clk 0:03:22.7]} 13... Bh4+
{[%clk 0:03:40.5]} 14. Kd1 {[%clk 0:03:01.1]} 14... Bg6 {[%clk 0:03:25.3]} 15.
e4 {[%clk 0:02:56.6]} 15... Qd7 {[%clk 0:03:22.5]} 16. Be3 {[%clk 0:02:43.6]}
16... Rfd8 {[%clk 0:03:03.6]} 17. Bd3 {[%clk 0:02:35.7]} 17... c5 {[%clk
0:02:59.1]} 18. Qxc5 {[%clk 0:02:21]} 18... Rac8 {[%clk 0:02:56.9]} 19. Qxa5
{[%clk 0:02:12.7]} 19... e5 {[%clk 0:02:53.6]} 20. d5 {[%clk 0:02:01.5]} 20...
Rb8 {[%clk 0:02:41]} 21. b4 {[%clk 0:01:48.4]} 21... Rdc8 {[%clk 0:02:34.8]} 22.
Kd2 {[%clk 0:01:41.5]} 22... Ra8 {[%clk 0:02:22.4]} 23. Qb5 {[%clk 0:01:36.1]}
23... Qc7 {[%clk 0:02:19.9]} 24. Rhc1 {[%clk 0:01:28.9]} 1-0

[Event "Live Chess"]
[Site "Chess.com"]
[Date "2023.05.21"]
[Round "-"]
[White "lateforthesky"]
[Black "McSlash1"]
[Result "1-0"]
[WhiteElo "2105"]
[BlackElo "2008"]
[TimeControl "300"]
[EndTime "7:34:45 PDT"]
[Termination "lateforthesky won by resignation"]

1. e4 {[%clk 0:04:57]} 1... c5 {[%clk 0:04:59.4]} 2. Nf3 {[%clk 0:04:55.3]} 2...
d6 {[%clk 0:04:58.1]} 3. d4 {[%clk 0:04:52.8]} 3... cxd4 {[%clk 0:04:58]} 4.
Nxd4 {[%clk 0:04:51.9]} 4... Nf6 {[%clk 0:04:57.6]} 5. Nc3 {[%clk 0:04:50.7]}
5... g6 {[%clk 0:04:57.1]} 6. g3 {[%clk 0:04:48.9]} 6... Bg7 {[%clk 0:04:55.1]}
7. Bg2 {[%clk 0:04:47.6]} 7... O-O {[%clk 0:04:51]} 8. O-O {[%clk 0:04:45.6]}
8... Nc6 {[%clk 0:04:50]} 9. Nb3 {[%clk 0:04:35.8]} 9... Be6 {[%clk 0:04:44.8]}
10. h3 {[%clk 0:04:33.7]} 10... Ne5 {[%clk 0:04:41.1]} 11. f4 {[%clk 0:04:24.9]}
11... Nc4 {[%clk 0:04:39.9]} 12. Nd4 {[%clk 0:04:23.4]} 12... Bd7 {[%clk
0:04:38.9]} 13. b3 {[%clk 0:04:18.3]} 13... Na5 {[%clk 0:04:35.2]} 14. Bb2
{[%clk 0:04:04.5]} 14... Nc6 {[%clk 0:04:32.6]} 15. Nf3 {[%clk 0:03:57.1]} 15...
Qc8 {[%clk 0:04:27.5]} 16. Kh2 {[%clk 0:03:55.7]} 16... h5 {[%clk 0:04:23.9]}
17. Qe2 {[%clk 0:03:45.7]} 17... a6 {[%clk 0:04:20.1]} 18. Rad1 {[%clk
0:03:44.5]} 18... b5 {[%clk 0:04:16.4]} 19. e5 {[%clk 0:03:37.5]} 19... dxe5
{[%clk 0:04:14.8]} 20. fxe5 {[%clk 0:03:36.1]} 20... Nh7 {[%clk 0:04:12.2]} 21.
Nd5 {[%clk 0:03:31.6]} 21... Bf5 {[%clk 0:04:08.3]} 22. Nb6 {[%clk 0:03:16.9]}
22... Qb8 {[%clk 0:03:56.9]} 23. Nxa8 {[%clk 0:03:15.2]} 23... Qxa8 {[%clk
0:03:56.8]} 24. Nh4 {[%clk 0:03:10.9]} 24... Be6 {[%clk 0:03:52]} 25. Qe4 {[%clk
0:03:00.9]} 25... Rc8 {[%clk 0:03:49.8]} 26. Nf3 {[%clk 0:02:45.5]} 26... Qb8
{[%clk 0:03:47]} 27. Rd2 {[%clk 0:02:36]} 27... a5 {[%clk 0:03:44.9]} 28. Rfd1
{[%clk 0:02:34.5]} 28... Nb4 {[%clk 0:03:43.5]} 29. Nd4 {[%clk 0:02:15.6]} 29...
Bd5 {[%clk 0:03:36]} 30. Qe2 {[%clk 0:02:09.7]} 30... Bxg2 {[%clk 0:03:33]} 31.
Qxg2 {[%clk 0:02:07.7]} 31... Bxe5 {[%clk 0:03:22.7]} 32. a3 {[%clk 0:01:55.5]}
32... Na2 {[%clk 0:03:11]} 33. Nc6 {[%clk 0:01:51.7]} 33... Bxg3+ {[%clk
0:02:50.6]} 34. Kh1 {[%clk 0:01:50.4]} 34... Qf4 {[%clk 0:02:36.4]} 35. Nxe7+
{[%clk 0:01:44.5]} 35... Kf8 {[%clk 0:02:35.3]} 36. Nxc8 {[%clk 0:01:41.5]}
36... Kg8 {[%clk 0:02:24]} 37. Rd8+ {[%clk 0:01:37.7]} 37... Nf8 {[%clk
0:02:23.6]} 38. Rxf8+ {[%clk 0:01:32.4]} 38... Kh7 {[%clk 0:02:14]} 1-0